[Event "Titled Tuesday Blitz November 07 Early 2023"]
[White "Santos Flores, Alberto"]
[Black "Estevez Polanco, Leonardo Rafael"]
[WhiteFideId "3601234"]
[BlackFideId "6402798"]
[WhiteElo "2506"]
[BlackElo "2170"]
[Result "1-0"]
[Round "5"]
[TimeControl "180+1"]
[Date "2023.11.07"]
[WhiteClock "0:00:20"]
[BlackClock "0:00:17"]
[Board "144"]

1. e4 {[%clk 0:03:00]}  e5 {[%clk 0:02:57]} 2. Nf3 {[%clk 0:03:00]}  Nc6 {[%clk 0:02:57]} 3. Bc4 {[%clk 0:03:01]}  Nf6 {[%clk 0:02:56]} 4. d3 {[%clk 0:03:01]}  Be7 {[%clk 0:02:57]} 5. O-O {[%clk 0:03:00]}  O-O {[%clk 0:02:57]} 6. c3 {[%clk 0:03:01]}  d5 {[%clk 0:02:57]} 7. exd5 {[%clk 0:03:01]}  Nxd5 {[%clk 0:02:58]} 8. Re1 {[%clk 0:03:01]}  Bf6 {[%clk 0:02:58]} 9. Nbd2 {[%clk 0:02:59]}  Nb6 {[%clk 0:02:56]} 10. Bb5 {[%clk 0:02:59]}  Re8 {[%clk 0:02:54]} 11. Ne4 {[%clk 0:02:52]}  h6 {[%clk 0:02:44]} 12. h3 {[%clk 0:02:46]}  Bf5 {[%clk 0:02:39]} 13. Bxc6 {[%clk 0:02:40]}  bxc6 {[%clk 0:02:37]} 14. Nxf6+ {[%clk 0:02:41]}  Qxf6 {[%clk 0:02:37]} 15. d4 {[%clk 0:02:41]}  e4 {[%clk 0:02:26]} 16. Ne5 {[%clk 0:02:41]}  Rad8 {[%clk 0:02:21]} 17. Qh5 {[%clk 0:02:32]}  c5 {[%clk 0:02:07]} 18. dxc5 {[%clk 0:02:13]}  Rxe5 {[%clk 0:01:56]} 19. cxb6 {[%clk 0:02:12]}  cxb6 {[%clk 0:01:44]} 20. Bf4 {[%clk 0:02:10]}  Red5 {[%clk 0:01:43]} 21. Be3 {[%clk 0:01:59]}  Bg6 {[%clk 0:01:33]} 22. Qe2 {[%clk 0:01:53]}  Rd3 {[%clk 0:01:31]} 23. Bd4 {[%clk 0:01:42]}  Qe6 {[%clk 0:01:26]} 24. Rad1 {[%clk 0:01:38]}  Qxa2 {[%clk 0:01:24]} 25. Rxd3 {[%clk 0:01:26]}  exd3 {[%clk 0:01:23]} 26. Qe5 {[%clk 0:01:27]}  f6 {[%clk 0:01:08]} 27. Qc7 {[%clk 0:01:26]}  Rxd4 {[%clk 0:00:52]} 28. cxd4 {[%clk 0:01:15]}  Qxb2 {[%clk 0:00:47]} 29. Re7 {[%clk 0:00:34]}  Qa1+ {[%clk 0:00:18]} 30. Kh2 {[%clk 0:00:33]}  Qxd4 {[%clk 0:00:18]} 31. Rxg7+ {[%clk 0:00:32]}  Kh8 {[%clk 0:00:19]} 32. Rxg6 {[%clk 0:00:23]}  Qe5+ {[%clk 0:00:19]} 33. Qxe5 {[%clk 0:00:23]}  fxe5 {[%clk 0:00:20]} 34. Rd6 {[%clk 0:00:23]}  e4 {[%clk 0:00:20]} 35. Kg3 {[%clk 0:00:19]}  b5 {[%clk 0:00:20]} 36. Kf4 {[%clk 0:00:20]}  b4 {[%clk 0:00:21]} 37. Kxe4 {[%clk 0:00:19]}  b3 {[%clk 0:00:20]} 38. Kxd3 {[%clk 0:00:20]}  b2 {[%clk 0:00:17]} 39. Kc2 {[%clk 0:00:20]} 1-0


[Site "https://www.chess.com"]

[Event "Titled Tuesday Blitz November 07 Early 2023"]
[White "marik_spb"]
[Black "Belov, Alexei"]
[BlackFideId "4128206"]
[WhiteElo "2394"]
[BlackElo "2612"]
[Result "1-0"]
[Round "5"]
[TimeControl "180+1"]
[Date "2023.11.07"]
[WhiteClock "0:01:18"]
[BlackClock "0:01:12"]
[Board "146"]

1. e4 {[%clk 0:02:19]}  e6 {[%clk 0:02:59]} 2. d4 {[%clk 0:02:14]}  d5 {[%clk 0:02:59]} 3. e5 {[%clk 0:02:13]}  c5 {[%clk 0:02:59]} 4. c3 {[%clk 0:02:14]}  Qb6 {[%clk 0:02:59]} 5. Nf3 {[%clk 0:02:14]}  Nc6 {[%clk 0:03:00]} 6. a3 {[%clk 0:02:15]}  Bd7 {[%clk 0:03:00]} 7. b4 {[%clk 0:02:15]}  cxd4 {[%clk 0:03:00]} 8. cxd4 {[%clk 0:02:16]}  Rc8 {[%clk 0:03:01]} 9. Be3 {[%clk 0:02:16]}  Nh6 {[%clk 0:03:01]} 10. Bd3 {[%clk 0:02:15]}  g6 {[%clk 0:03:01]} 11. O-O {[%clk 0:02:14]}  Ne7 {[%clk 0:03:01]} 12. Nbd2 {[%clk 0:02:14]}  Nhf5 {[%clk 0:03:01]} 13. g4 {[%clk 0:02:09]}  Nxe3 {[%clk 0:02:59]} 14. fxe3 {[%clk 0:02:10]}  Bg7 {[%clk 0:03:00]} 15. Qe2 {[%clk 0:02:08]}  Ba4 {[%clk 0:02:57]} 16. Rac1 {[%clk 0:02:02]}  O-O {[%clk 0:02:56]} 17. Rxc8 {[%clk 0:02:01]}  Rxc8 {[%clk 0:02:52]} 18. Ng5 {[%clk 0:01:58]}  Rf8 {[%clk 0:02:44]} 19. h4 {[%clk 0:01:53]}  Qc7 {[%clk 0:02:22]} 20. h5 {[%clk 0:01:37]}  Bc2 {[%clk 0:01:28]} 21. hxg6 {[%clk 0:01:33]}  Bxd3 {[%clk 0:01:22]} 22. gxf7+ {[%clk 0:01:32]}  Kh8 {[%clk 0:01:20]} 23. Qxd3 {[%clk 0:01:27]}  Ng6 {[%clk 0:01:19]} 24. Nxe6 {[%clk 0:01:24]}  Qe7 {[%clk 0:01:17]} 25. Nxf8 {[%clk 0:01:19]}  Bxf8 {[%clk 0:01:17]} 26. Qf5 {[%clk 0:01:17]}  Qh4 {[%clk 0:01:16]} 27. Qf6+ {[%clk 0:01:17]}  Qxf6 {[%clk 0:01:12]} 28. Rxf6 {[%clk 0:01:18]} 1-0


[Site "https://www.chess.com"]

[Event "Titled Tuesday Blitz November 07 Early 2023"]
[White "Skaric, Djuro"]
[Black "Khamdamova, Afruza"]
[WhiteFideId "934569"]
[BlackFideId "14210444"]
[WhiteElo "2353"]
[BlackElo "2512"]
[Result "0-1"]
[Round "5"]
[TimeControl "180+1"]
[Date "2023.11.07"]
[WhiteClock "0:01:06"]
[BlackClock "0:00:26"]
[Board "149"]

1. g3 {[%clk 0:03:00]}  Nf6 {[%clk 0:02:58]} 2. Bg2 {[%clk 0:03:01]}  d5 {[%clk 0:02:58]} 3. d3 {[%clk 0:03:02]}  c5 {[%clk 0:02:58]} 4. Nf3 {[%clk 0:03:03]}  Nc6 {[%clk 0:02:58]} 5. O-O {[%clk 0:03:03]}  e6 {[%clk 0:02:57]} 6. h3 {[%clk 0:03:04]}  Be7 {[%clk 0:02:57]} 7. Nc3 {[%clk 0:03:04]}  O-O {[%clk 0:02:57]} 8. e4 {[%clk 0:03:05]}  d4 {[%clk 0:02:55]} 9. Ne2 {[%clk 0:03:04]}  e5 {[%clk 0:02:55]} 10. Ne1 {[%clk 0:03:04]}  b5 {[%clk 0:02:46]} 11. f4 {[%clk 0:03:04]}  c4 {[%clk 0:02:43]} 12. f5 {[%clk 0:03:03]}  Ba6 {[%clk 0:02:34]} 13. Rf2 {[%clk 0:03:01]}  Rc8 {[%clk 0:02:34]} 14. Bf1 {[%clk 0:03:01]}  Nd7 {[%clk 0:02:20]} 15. h4 {[%clk 0:02:56]}  Nc5 {[%clk 0:02:15]} 16. Rh2 {[%clk 0:02:53]}  b4 {[%clk 0:02:12]} 17. b3 {[%clk 0:02:50]}  cxd3 {[%clk 0:02:10]} 18. cxd3 {[%clk 0:02:50]}  Qb6 {[%clk 0:01:38]} 19. Kg2 {[%clk 0:02:48]}  Bb7 {[%clk 0:01:36]} 20. Ng1 {[%clk 0:02:44]}  a5 {[%clk 0:01:34]} 21. Kh3 {[%clk 0:02:43]}  Na7 {[%clk 0:01:33]} 22. g4 {[%clk 0:02:43]}  Nb5 {[%clk 0:01:33]} 23. g5 {[%clk 0:02:42]}  Nc3 {[%clk 0:01:33]} 24. Qg4 {[%clk 0:02:41]}  Kh8 {[%clk 0:01:26]} 25. h5 {[%clk 0:02:37]}  h6 {[%clk 0:01:20]} 26. g6 {[%clk 0:02:37]}  f6 {[%clk 0:01:20]} 27. Ngf3 {[%clk 0:02:08]}  Rc7 {[%clk 0:01:17]} 28. Rb2 {[%clk 0:02:06]}  Rfc8 {[%clk 0:01:16]} 29. Bd2 {[%clk 0:02:06]}  Bf8 {[%clk 0:01:07]} 30. Nh2 {[%clk 0:02:05]}  a4 {[%clk 0:01:04]} 31. bxa4 {[%clk 0:02:02]}  N5xa4 {[%clk 0:01:03]} 32. Rc2 {[%clk 0:02:03]}  Nc5 {[%clk 0:00:54]} 33. Bg2 {[%clk 0:01:56]}  Qa6 {[%clk 0:00:52]} 34. Bxc3 {[%clk 0:01:43]}  dxc3 {[%clk 0:00:48]} 35. Rb1 {[%clk 0:01:41]}  Rd8 {[%clk 0:00:39]} 36. Bf1 {[%clk 0:01:39]}  Qa4 {[%clk 0:00:38]} 37. Qg2 {[%clk 0:01:30]}  Rcd7 {[%clk 0:00:35]} 38. Rd1 {[%clk 0:01:26]}  Ba6 {[%clk 0:00:33]} 39. Qf3 {[%clk 0:01:22]}  Nxd3 {[%clk 0:00:29]} 40. Bxd3 {[%clk 0:01:22]}  Bxd3 {[%clk 0:00:29]} 41. Rxd3 {[%clk 0:01:22]}  Rxd3 {[%clk 0:00:29]} 42. Nxd3 {[%clk 0:01:21]}  Qxc2 {[%clk 0:00:29]} 43. Nf2 {[%clk 0:01:17]}  Qxa2 {[%clk 0:00:27]} 44. Nhg4 {[%clk 0:01:14]}  c2 {[%clk 0:00:27]} 45. Qe3 {[%clk 0:01:06]}  Qa3 {[%clk 0:00:26]} 0-1


[Site "https://www.chess.com"]

[Event "Titled Tuesday Blitz November 07 Early 2023"]
[White "Matthes, Aaron"]
[Black "LouieKov2022"]
[WhiteFideId "16227310"]
[WhiteElo "2348"]
[BlackElo "2512"]
[Result "0-1"]
[Round "5"]
[TimeControl "180+1"]
[Date "2023.11.07"]
[WhiteClock "0:00:21"]
[BlackClock "0:00:29"]
[Board "150"]

1. Nf3 {[%clk 0:02:53]}  d5 {[%clk 0:02:59]} 2. d4 {[%clk 0:02:53]}  Nf6 {[%clk 0:02:59]} 3. g3 {[%clk 0:02:54]}  c6 {[%clk 0:02:58]} 4. Bg2 {[%clk 0:02:54]}  Bf5 {[%clk 0:02:58]} 5. O-O {[%clk 0:02:47]}  h6 {[%clk 0:02:58]} 6. b3 {[%clk 0:02:45]}  e6 {[%clk 0:02:59]} 7. Bb2 {[%clk 0:02:45]}  Bd6 {[%clk 0:02:58]} 8. c4 {[%clk 0:02:45]}  Ne4 {[%clk 0:02:58]} 9. Nfd2 {[%clk 0:02:45]}  Nxd2 {[%clk 0:02:55]} 10. Qxd2 {[%clk 0:02:46]}  O-O {[%clk 0:02:54]} 11. Nc3 {[%clk 0:02:46]}  Nd7 {[%clk 0:02:54]} 12. e4 {[%clk 0:02:46]}  dxe4 {[%clk 0:02:53]} 13. Nxe4 {[%clk 0:02:45]}  Be7 {[%clk 0:02:54]} 14. Rad1 {[%clk 0:02:40]}  a5 {[%clk 0:02:52]} 15. a3 {[%clk 0:02:38]}  Nf6 {[%clk 0:02:51]} 16. Rfe1 {[%clk 0:02:32]}  Qb6 {[%clk 0:02:47]} 17. Qc3 {[%clk 0:02:25]}  Rfd8 {[%clk 0:02:37]} 18. Bc1 {[%clk 0:02:05]}  Rd7 {[%clk 0:02:20]} 19. Nxf6+ {[%clk 0:01:44]}  Bxf6 {[%clk 0:02:21]} 20. Be3 {[%clk 0:01:44]}  Rad8 {[%clk 0:02:15]} 21. d5 {[%clk 0:01:28]}  Bxc3 {[%clk 0:01:31]} 22. Bxb6 {[%clk 0:01:27]}  Bxe1 {[%clk 0:01:32]} 23. Bxd8 {[%clk 0:01:27]}  Rxd8 {[%clk 0:01:23]} 24. Rxe1 {[%clk 0:01:27]}  cxd5 {[%clk 0:01:24]} 25. cxd5 {[%clk 0:01:26]}  exd5 {[%clk 0:01:25]} 26. Rd1 {[%clk 0:01:18]}  Be6 {[%clk 0:01:21]} 27. Rd4 {[%clk 0:01:16]}  Kf8 {[%clk 0:01:20]} 28. Kf1 {[%clk 0:01:11]}  Ke7 {[%clk 0:01:20]} 29. Ke1 {[%clk 0:01:11]}  Kd6 {[%clk 0:01:20]} 30. Kd2 {[%clk 0:01:12]}  Kc5 {[%clk 0:01:20]} 31. Kc3 {[%clk 0:01:10]}  Rc8 {[%clk 0:01:16]} 32. b4+ {[%clk 0:01:05]}  Kd6+ {[%clk 0:01:15]} 33. Kb3 {[%clk 0:01:02]}  Rc4 {[%clk 0:01:06]} 34. Rd2 {[%clk 0:00:38]}  axb4 {[%clk 0:00:51]} 35. axb4 {[%clk 0:00:36]}  d4 {[%clk 0:00:45]} 36. Ka4 {[%clk 0:00:29]}  Bd7+ {[%clk 0:00:35]} 37. Ka5 {[%clk 0:00:29]}  b6+ {[%clk 0:00:33]} 38. Kxb6 {[%clk 0:00:25]}  Rxb4+ {[%clk 0:00:33]} 39. Ka5 {[%clk 0:00:25]}  Kc5 {[%clk 0:00:29]} 40. Bf1 {[%clk 0:00:21]}  Ra4# {[%clk 0:00:29]} 0-1


[Site "https://www.chess.com"]

[Event "Titled Tuesday Blitz November 07 Early 2023"]
[White "Zaksaite, Salomeja"]
[Black "Baches Garcia, Guillermo"]
[WhiteFideId "12801496"]
[BlackFideId "2209764"]
[WhiteElo "2319"]
[BlackElo "2494"]
[Result "1-0"]
[Round "5"]
[TimeControl "180+1"]
[Date "2023.11.07"]
[WhiteClock "0:00:24"]
[BlackClock "0:01:06"]
[Board "152"]

1. e4 {[%clk 0:03:00]}  d5 {[%clk 0:03:00]} 2. exd5 {[%clk 0:02:59]}  Qxd5 {[%clk 0:03:01]} 3. Nc3 {[%clk 0:02:57]}  Qa5 {[%clk 0:03:00]} 4. Bc4 {[%clk 0:02:57]}  Nf6 {[%clk 0:02:59]} 5. d3 {[%clk 0:02:57]}  a6 {[%clk 0:03:00]} 6. Bd2 {[%clk 0:02:56]}  Qe5+ {[%clk 0:03:00]} 7. Qe2 {[%clk 0:02:55]}  Qxe2+ {[%clk 0:02:59]} 8. Ngxe2 {[%clk 0:02:56]}  b5 {[%clk 0:02:59]} 9. Bb3 {[%clk 0:02:56]}  Bb7 {[%clk 0:02:59]} 10. O-O {[%clk 0:02:53]}  e6 {[%clk 0:02:59]} 11. Ng3 {[%clk 0:02:44]}  Nc6 {[%clk 0:02:56]} 12. Nce4 {[%clk 0:02:41]}  Nd4 {[%clk 0:02:50]} 13. Nxf6+ {[%clk 0:02:37]}  gxf6 {[%clk 0:02:51]} 14. Bc3 {[%clk 0:02:35]}  O-O-O {[%clk 0:02:46]} 15. Bxd4 {[%clk 0:02:07]}  Rxd4 {[%clk 0:02:45]} 16. a4 {[%clk 0:02:07]}  Rg8 {[%clk 0:02:39]} 17. axb5 {[%clk 0:02:07]}  axb5 {[%clk 0:02:38]} 18. f3 {[%clk 0:02:05]}  Bc5 {[%clk 0:02:25]} 19. Kh1 {[%clk 0:02:04]}  f5 {[%clk 0:02:14]} 20. Ne2 {[%clk 0:01:33]}  Rh4 {[%clk 0:02:11]} 21. h3 {[%clk 0:01:21]}  Bb6 {[%clk 0:01:56]} 22. c3 {[%clk 0:01:16]}  Rh6 {[%clk 0:01:54]} 23. d4 {[%clk 0:01:15]}  Rhg6 {[%clk 0:01:54]} 24. Nf4 {[%clk 0:01:13]}  R6g7 {[%clk 0:01:48]} 25. Rfe1 {[%clk 0:00:38]}  c6 {[%clk 0:01:39]} 26. Nxe6 {[%clk 0:00:33]}  Rxg2 {[%clk 0:01:30]} 27. Nf4 {[%clk 0:00:30]}  Rxb2 {[%clk 0:01:28]} 28. Bxf7 {[%clk 0:00:27]}  Rg3 {[%clk 0:01:24]} 29. Be6+ {[%clk 0:00:26]}  Kc7 {[%clk 0:01:18]} 30. Bxf5 {[%clk 0:00:26]}  Rxf3 {[%clk 0:01:12]} 31. Re7+ {[%clk 0:00:26]}  Kd6 {[%clk 0:01:06]} 32. Rd7# {[%clk 0:00:24]} 1-0


[Site "https://www.chess.com"]

[Event "Titled Tuesday Blitz November 07 Early 2023"]
[White "Vifleemskaia, Svetlana"]
[Black "Kubicka, Anna"]
[WhiteFideId "4129490"]
[BlackFideId "1152254"]
[WhiteElo "2288"]
[BlackElo "2490"]
[Result "0-1"]
[Round "5"]
[TimeControl "180+1"]
[Date "2023.11.07"]
[WhiteClock "0:00:00"]
[BlackClock "0:00:10"]
[Board "153"]

1. d4 {[%clk 0:02:25]}  Nf6 {[%clk 0:02:58]} 2. c4 {[%clk 0:02:24]}  c5 {[%clk 0:02:57]} 3. d5 {[%clk 0:02:22]}  e6 {[%clk 0:02:58]} 4. Nc3 {[%clk 0:02:19]}  exd5 {[%clk 0:02:59]} 5. cxd5 {[%clk 0:02:19]}  d6 {[%clk 0:02:59]} 6. e4 {[%clk 0:02:20]}  g6 {[%clk 0:03:00]} 7. Nf3 {[%clk 0:02:20]}  Bg7 {[%clk 0:03:00]} 8. Nd2 {[%clk 0:02:21]}  O-O {[%clk 0:03:01]} 9. Be2 {[%clk 0:02:21]}  a6 {[%clk 0:03:02]} 10. a4 {[%clk 0:02:20]}  Re8 {[%clk 0:03:02]} 11. O-O {[%clk 0:02:20]}  Nbd7 {[%clk 0:03:03]} 12. f3 {[%clk 0:02:19]}  Ne5 {[%clk 0:03:01]} 13. Nc4 {[%clk 0:02:19]}  Nxc4 {[%clk 0:03:00]} 14. Bxc4 {[%clk 0:02:20]}  b6 {[%clk 0:02:55]} 15. Bg5 {[%clk 0:02:17]}  Rb8 {[%clk 0:02:54]} 16. Qd2 {[%clk 0:02:13]}  Qc7 {[%clk 0:02:43]} 17. Bh6 {[%clk 0:02:11]}  Bd7 {[%clk 0:02:40]} 18. Bxg7 {[%clk 0:02:10]}  Kxg7 {[%clk 0:02:41]} 19. Bxa6 {[%clk 0:02:08]}  Kg8 {[%clk 0:02:24]} 20. Bb5 {[%clk 0:02:08]}  Ra8 {[%clk 0:02:21]} 21. b3 {[%clk 0:01:59]}  Qd8 {[%clk 0:02:13]} 22. Bxd7 {[%clk 0:01:30]}  Nxd7 {[%clk 0:02:12]} 23. Nb5 {[%clk 0:01:31]}  Ne5 {[%clk 0:01:52]} 24. Qf4 {[%clk 0:01:28]}  Rf8 {[%clk 0:01:47]} 25. Qg3 {[%clk 0:01:07]}  Qe7 {[%clk 0:01:26]} 26. f4 {[%clk 0:01:04]}  Nd7 {[%clk 0:01:26]} 27. Rae1 {[%clk 0:01:01]}  c4 {[%clk 0:01:25]} 28. e5 {[%clk 0:00:55]}  dxe5 {[%clk 0:01:19]} 29. fxe5 {[%clk 0:00:54]}  Qc5+ {[%clk 0:01:07]} 30. Kh1 {[%clk 0:00:41]}  cxb3 {[%clk 0:01:07]} 31. Qxb3 {[%clk 0:00:40]}  Qc8 {[%clk 0:00:38]} 32. Nd6 {[%clk 0:00:32]}  Qb8 {[%clk 0:00:26]} 33. Nxf7 {[%clk 0:00:30]}  Nc5 {[%clk 0:00:17]} 34. Nh6+ {[%clk 0:00:28]}  Kg7 {[%clk 0:00:16]} 35. Qh3 {[%clk 0:00:23]}  Rxf1+ {[%clk 0:00:13]} 36. Rxf1 {[%clk 0:00:22]}  Qxe5 {[%clk 0:00:14]} 37. Rf7+ {[%clk 0:00:17]}  Kh8 {[%clk 0:00:12]} 38. Qf3 {[%clk 0:00:10]}  Qe1+ {[%clk 0:00:11]} 39. Qf1 {[%clk 0:00:10]}  Qxf1+ {[%clk 0:00:11]} 40. Rxf1 {[%clk 0:00:10]}  Rxa4 {[%clk 0:00:11]} 41. h3 {[%clk 0:00:10]}  Rd4 {[%clk 0:00:10]} 42. Rb1 {[%clk 0:00:09]}  Na4 {[%clk 0:00:09]} 43. Nf7+ {[%clk 0:00:07]}  Kg7 {[%clk 0:00:09]} 44. Ne5 {[%clk 0:00:06]}  Rxd5 {[%clk 0:00:09]} 45. Nc4 {[%clk 0:00:05]}  b5 {[%clk 0:00:09]} 46. Na3 {[%clk 0:00:05]}  Nc3 {[%clk 0:00:09]} 47. Rb3 {[%clk 0:00:05]}  Rc5 {[%clk 0:00:09]} 48. Kh2 {[%clk 0:00:03]}  Kf6 {[%clk 0:00:10]} 49. Rb4 {[%clk 0:00:00]}  Ke5 {[%clk 0:00:10]} 0-1


[Site "https://www.chess.com"]

[Event "Titled Tuesday Blitz November 07 Early 2023"]
[White "TheAlienParty"]
[Black "Manukyan, Sargis V."]
[BlackFideId "13303465"]
[WhiteElo "2228"]
[BlackElo "2457"]
[Result "1-0"]
[Round "5"]
[TimeControl "180+1"]
[Date "2023.11.07"]
[WhiteClock "0:00:07"]
[BlackClock "0:00:11"]
[Board "156"]

1. c4 {[%clk 0:02:54]}  c5 {[%clk 0:02:59]} 2. g3 {[%clk 0:02:53]}  Nc6 {[%clk 0:02:59]} 3. Bg2 {[%clk 0:02:52]}  g6 {[%clk 0:02:59]} 4. Nf3 {[%clk 0:02:52]}  Bg7 {[%clk 0:03:00]} 5. Nc3 {[%clk 0:02:53]}  e5 {[%clk 0:02:59]} 6. d3 {[%clk 0:02:51]}  d6 {[%clk 0:02:59]} 7. O-O {[%clk 0:02:51]}  Nge7 {[%clk 0:03:00]} 8. Ne1 {[%clk 0:02:51]}  Be6 {[%clk 0:03:00]} 9. Nd5 {[%clk 0:02:51]}  Qd7 {[%clk 0:03:00]} 10. Nc2 {[%clk 0:02:49]}  O-O {[%clk 0:03:00]} 11. Rb1 {[%clk 0:02:48]}  Bh3 {[%clk 0:02:58]} 12. Bxh3 {[%clk 0:02:47]}  Qxh3 {[%clk 0:02:59]} 13. b4 {[%clk 0:02:47]}  b6 {[%clk 0:02:55]} 14. b5 {[%clk 0:02:42]}  Nxd5 {[%clk 0:02:54]} 15. cxd5 {[%clk 0:02:38]}  Ne7 {[%clk 0:02:53]} 16. e4 {[%clk 0:02:37]}  f5 {[%clk 0:02:53]} 17. f3 {[%clk 0:02:32]}  f4 {[%clk 0:02:47]} 18. Qe1 {[%clk 0:02:31]}  h5 {[%clk 0:02:46]} 19. a4 {[%clk 0:02:23]}  Rae8 {[%clk 0:02:45]} 20. Qf2 {[%clk 0:02:21]}  g5 {[%clk 0:02:45]} 21. Na3 {[%clk 0:02:15]}  Kh7 {[%clk 0:02:44]} 22. Nc4 {[%clk 0:02:15]}  Rf6 {[%clk 0:02:45]} 23. a5 {[%clk 0:02:12]}  Rg8 {[%clk 0:02:43]} 24. axb6 {[%clk 0:02:07]}  axb6 {[%clk 0:02:44]} 25. Ra1 {[%clk 0:01:56]}  Bf8 {[%clk 0:02:44]} 26. Qg2 {[%clk 0:01:52]}  Qd7 {[%clk 0:02:41]} 27. Ra6 {[%clk 0:01:49]}  g4 {[%clk 0:02:38]} 28. fxg4 {[%clk 0:01:32]}  Qxg4 {[%clk 0:02:39]} 29. Rxb6 {[%clk 0:01:29]}  fxg3 {[%clk 0:02:39]} 30. hxg3 {[%clk 0:01:25]}  Rxf1+ {[%clk 0:02:38]} 31. Kxf1 {[%clk 0:01:22]}  Qd1+ {[%clk 0:02:38]} 32. Kf2 {[%clk 0:01:22]}  Qxc1 {[%clk 0:02:38]} 33. Rxd6 {[%clk 0:01:21]}  Qc2+ {[%clk 0:02:39]} 34. Kg1 {[%clk 0:01:19]}  Qxg2+ {[%clk 0:02:39]} 35. Kxg2 {[%clk 0:01:18]}  h4 {[%clk 0:02:40]} 36. b6 {[%clk 0:01:16]}  Rxg3+ {[%clk 0:02:39]} 37. Kf2 {[%clk 0:01:11]}  Rxd3 {[%clk 0:02:28]} 38. b7 {[%clk 0:01:10]}  Rb3 {[%clk 0:02:29]} 39. Rb6 {[%clk 0:01:09]}  Rc3 {[%clk 0:00:46]} 40. Nxe5 {[%clk 0:01:08]}  Rc2+ {[%clk 0:00:23]} 41. Kf3 {[%clk 0:01:07]}  h3 {[%clk 0:00:20]} 42. b8=Q {[%clk 0:01:04]}  h2 {[%clk 0:00:20]} 43. Rb1 {[%clk 0:00:59]}  Bg7 {[%clk 0:00:19]} 44. Nf7 {[%clk 0:00:53]}  Ng6 {[%clk 0:00:18]} 45. Ng5+ {[%clk 0:00:38]}  Kh6 {[%clk 0:00:16]} 46. Nf7+ {[%clk 0:00:32]}  Kh7 {[%clk 0:00:13]} 47. Qc7 {[%clk 0:00:27]}  Bd4 {[%clk 0:00:05]} 48. Rh1 {[%clk 0:00:25]}  Rf2+ {[%clk 0:00:05]} 49. Kg3 {[%clk 0:00:23]}  Rf6 {[%clk 0:00:05]} 50. Qd7 {[%clk 0:00:17]}  Kg8 {[%clk 0:00:03]} 51. Nh6+ {[%clk 0:00:16]}  Kf8 {[%clk 0:00:02]} 52. Kxh2 {[%clk 0:00:14]}  Be5+ {[%clk 0:00:02]} 53. Kg2 {[%clk 0:00:13]}  Nf4+ {[%clk 0:00:03]} 54. Kf1 {[%clk 0:00:12]}  Nxd5+ {[%clk 0:00:03]} 55. Ke2 {[%clk 0:00:11]}  Nf4+ {[%clk 0:00:03]} 56. Ke3 {[%clk 0:00:09]}  Ng2+ {[%clk 0:00:03]} 57. Ke2 {[%clk 0:00:09]}  Nf4+ {[%clk 0:00:04]} 58. Kd2 {[%clk 0:00:09]}  Rd6+ {[%clk 0:00:04]} 59. Qxd6+ {[%clk 0:00:09]}  Bxd6 {[%clk 0:00:05]} 60. Nf5 {[%clk 0:00:09]}  Be5 {[%clk 0:00:05]} 61. Kc2 {[%clk 0:00:09]}  Kf7 {[%clk 0:00:06]} 62. Rh7+ {[%clk 0:00:09]}  Kf6 {[%clk 0:00:05]} 63. Rh8 {[%clk 0:00:09]}  Ne6 {[%clk 0:00:06]} 64. Rc8 {[%clk 0:00:09]}  Kg5 {[%clk 0:00:04]} 65. Kd3 {[%clk 0:00:09]}  Kf6 {[%clk 0:00:02]} 66. Ne3 {[%clk 0:00:07]}  Bd4 {[%clk 0:00:02]} 67. Nc2 {[%clk 0:00:07]}  Ke5 {[%clk 0:00:03]} 68. Re8 {[%clk 0:00:06]}  Bb2 {[%clk 0:00:01]} 69. Ne3 {[%clk 0:00:04]}  Kd6 {[%clk 0:00:01]} 70. Nc4+ {[%clk 0:00:04]}  Kd7 {[%clk 0:00:02]} 71. Rxe6 {[%clk 0:00:04]}  Kxe6 {[%clk 0:00:02]} 72. Nxb2 {[%clk 0:00:04]}  Kd6 {[%clk 0:00:03]} 73. Nc4+ {[%clk 0:00:04]}  Ke6 {[%clk 0:00:04]} 74. Ke3 {[%clk 0:00:05]}  Ke7 {[%clk 0:00:04]} 75. Kf4 {[%clk 0:00:05]}  Kd7 {[%clk 0:00:05]} 76. e5 {[%clk 0:00:06]}  Kc6 {[%clk 0:00:06]} 77. Ke4 {[%clk 0:00:06]}  Kd7 {[%clk 0:00:07]} 78. Kf5 {[%clk 0:00:06]}  Ke7 {[%clk 0:00:08]} 79. e6 {[%clk 0:00:07]}  Ke8 {[%clk 0:00:09]} 80. Ke5 {[%clk 0:00:07]}  Kd8 {[%clk 0:00:10]} 81. Kf6 {[%clk 0:00:07]}  Ke8 {[%clk 0:00:11]} 82. e7 {[%clk 0:00:08]}  Kd7 {[%clk 0:00:11]} 83. Kf7 {[%clk 0:00:08]}  Kc7 {[%clk 0:00:10]} 84. e8=Q {[%clk 0:00:08]}  Kb7 {[%clk 0:00:11]} 85. Qb5+ {[%clk 0:00:07]}  Kc7 {[%clk 0:00:10]} 86. Qxc5+ {[%clk 0:00:08]}  Kd8 {[%clk 0:00:11]} 87. Qa7 {[%clk 0:00:07]}  Kc8 {[%clk 0:00:11]} 88. Ke6 {[%clk 0:00:07]}  Kd8 {[%clk 0:00:11]} 89. Qb8# {[%clk 0:00:07]} 1-0


[Site "https://www.chess.com"]

[Event "Titled Tuesday Blitz November 07 Early 2023"]
[White "Jovic, Stanoje"]
[Black "jimmy-schlumpf"]
[WhiteFideId "905020"]
[WhiteElo "2439"]
[BlackElo "2225"]
[Result "1/2-1/2"]
[Round "5"]
[TimeControl "180+1"]
[Date "2023.11.07"]
[WhiteClock "0:00:18"]
[BlackClock "0:00:16"]
[Board "157"]

1. c4 {[%clk 0:03:00]}  Nf6 {[%clk 0:02:58]} 2. g3 {[%clk 0:03:01]}  c6 {[%clk 0:02:57]} 3. Bg2 {[%clk 0:02:59]}  d5 {[%clk 0:02:58]} 4. cxd5 {[%clk 0:02:58]}  cxd5 {[%clk 0:02:57]} 5. Nf3 {[%clk 0:02:58]}  Nc6 {[%clk 0:02:55]} 6. d4 {[%clk 0:02:56]}  g6 {[%clk 0:02:39]} 7. O-O {[%clk 0:02:55]}  Bg7 {[%clk 0:02:40]} 8. Nc3 {[%clk 0:02:55]}  Ne4 {[%clk 0:02:36]} 9. Ne5 {[%clk 0:02:49]}  Nxc3 {[%clk 0:02:35]} 10. bxc3 {[%clk 0:02:46]}  Nxe5 {[%clk 0:02:35]} 11. dxe5 {[%clk 0:02:46]}  O-O {[%clk 0:02:30]} 12. f4 {[%clk 0:02:45]}  e6 {[%clk 0:02:28]} 13. e4 {[%clk 0:02:32]}  dxe4 {[%clk 0:02:22]} 14. Bxe4 {[%clk 0:02:31]}  Bd7 {[%clk 0:02:21]} 15. Be3 {[%clk 0:02:25]}  Bc6 {[%clk 0:02:01]} 16. Bxc6 {[%clk 0:02:18]}  bxc6 {[%clk 0:01:58]} 17. Qxd8 {[%clk 0:02:17]}  Rfxd8 {[%clk 0:01:56]} 18. Rfd1 {[%clk 0:02:17]}  a6 {[%clk 0:01:44]} 19. a4 {[%clk 0:02:11]}  Bf8 {[%clk 0:01:42]} 20. Bb6 {[%clk 0:02:06]}  Rd5 {[%clk 0:01:32]} 21. c4 {[%clk 0:02:02]}  Bc5+ {[%clk 0:01:32]} 22. Bxc5 {[%clk 0:01:55]}  Rxc5 {[%clk 0:01:32]} 23. Rd4 {[%clk 0:01:49]}  Rb8 {[%clk 0:01:31]} 24. Kg2 {[%clk 0:01:12]}  Rb4 {[%clk 0:01:28]} 25. a5 {[%clk 0:01:07]}  Rcxc4 {[%clk 0:01:24]} 26. Rd8+ {[%clk 0:01:05]}  Kg7 {[%clk 0:01:23]} 27. Ra8 {[%clk 0:01:05]}  Rc2+ {[%clk 0:01:21]} 28. Kh3 {[%clk 0:01:05]}  Rbb2 {[%clk 0:01:07]} 29. Rh1 {[%clk 0:01:04]}  Ra2 {[%clk 0:01:05]} 30. Rxa6 {[%clk 0:01:04]}  Rc5 {[%clk 0:01:04]} 31. Kg4 {[%clk 0:00:52]}  h5+ {[%clk 0:01:00]} 32. Kh4 {[%clk 0:00:41]}  Raxa5 {[%clk 0:00:55]} 33. Rxa5 {[%clk 0:00:40]}  Rxa5 {[%clk 0:00:54]} 34. Rc1 {[%clk 0:00:40]}  c5 {[%clk 0:00:47]} 35. Kg5 {[%clk 0:00:34]}  Ra2 {[%clk 0:00:39]} 36. h3 {[%clk 0:00:28]}  Ra3 {[%clk 0:00:39]} 37. Kh4 {[%clk 0:00:27]}  Ra5 {[%clk 0:00:29]} 38. Kg5 {[%clk 0:00:27]}  Rb5 {[%clk 0:00:28]} 39. Rc4 {[%clk 0:00:23]}  Ra5 {[%clk 0:00:16]} 40. Rc3 {[%clk 0:00:18]}  Rb5 {[%clk 0:00:15]} 41. Rc4 {[%clk 0:00:18]}  Ra5 {[%clk 0:00:15]} 42. Rc3 {[%clk 0:00:18]}  Rb5 {[%clk 0:00:16]} 43. Rc4 {[%clk 0:00:18]} 1/2-1/2


[Site "https://www.chess.com"]